[Event "Titled Tuesday Blitz August 1 Early 2023"]
[White "Vaibhav Jayant Raut"]
[Black "Garcia Almaguer, Juan Manuel"]
[WhiteFideId "5089034"]
[BlackFideId "5110491"]
[WhiteElo "2601"]
[BlackElo "2480"]
[Result "0-1"]
[Round "7"]
[TimeControl "180+1"]
[Date "2023.08.01"]
[WhiteClock "0:00:28"]
[BlackClock "0:01:17"]
[Board "80"]

1. e4 {[%clk 0:02:51]}  e5 {[%clk 0:02:58]} 2. Nf3 {[%clk 0:02:48]}  Nc6 {[%clk 0:02:57]} 3. Bb5 {[%clk 0:02:49]}  a6 {[%clk 0:02:56]} 4. Ba4 {[%clk 0:02:49]}  Nf6 {[%clk 0:02:34]} 5. d3 {[%clk 0:02:49]}  b5 {[%clk 0:02:31]} 6. Bb3 {[%clk 0:02:49]}  d6 {[%clk 0:02:31]} 7. c3 {[%clk 0:02:46]}  h6 {[%clk 0:02:30]} 8. O-O {[%clk 0:02:46]}  g5 {[%clk 0:02:30]} 9. d4 {[%clk 0:02:45]}  g4 {[%clk 0:02:30]} 10. dxe5 {[%clk 0:02:43]}  gxf3 {[%clk 0:02:30]} 11. exf6 {[%clk 0:02:41]}  fxg2 {[%clk 0:02:29]} 12. Re1 {[%clk 0:02:41]}  Qxf6 {[%clk 0:02:26]} 13. e5 {[%clk 0:02:37]}  dxe5 {[%clk 0:02:22]} 14. Bd5 {[%clk 0:02:34]}  Bb7 {[%clk 0:02:19]} 15. Nd2 {[%clk 0:02:35]}  O-O-O {[%clk 0:02:17]} 16. Ne4 {[%clk 0:02:24]}  Qh4 {[%clk 0:02:12]} 17. a4 {[%clk 0:02:17]}  b4 {[%clk 0:02:10]} 18. Be3 {[%clk 0:02:12]}  f5 {[%clk 0:02:09]} 19. Nc5 {[%clk 0:02:09]}  f4 {[%clk 0:02:09]} 20. Nxb7 {[%clk 0:01:54]}  fxe3 {[%clk 0:02:09]} 21. Rxe3 {[%clk 0:01:51]}  Kxb7 {[%clk 0:02:06]} 22. Qf3 {[%clk 0:01:32]}  Rd6 {[%clk 0:01:57]} 23. Re4 {[%clk 0:01:31]}  Qf6 {[%clk 0:01:48]} 24. Rxb4+ {[%clk 0:01:26]}  Kc8 {[%clk 0:01:48]} 25. Qg4+ {[%clk 0:01:11]}  Kd8 {[%clk 0:01:36]} 26. Rd1 {[%clk 0:00:54]}  h5 {[%clk 0:01:26]} 27. Bxc6 {[%clk 0:00:33]}  hxg4 {[%clk 0:01:22]} 28. Rb8+ {[%clk 0:00:32]}  Ke7 {[%clk 0:01:22]} 29. Rxd6 {[%clk 0:00:28]}  Qxd6 {[%clk 0:01:17]} 0-1


[Site "https://www.chess.com"]

[Event "Titled Tuesday Blitz August 1 Early 2023"]
[White "Shukhman, Anna"]
[Black "Gaal, Zsoka"]
[WhiteFideId "54180058"]
[BlackFideId "777765"]
[WhiteElo "2600"]
[BlackElo "2477"]
[Result "0-1"]
[Round "7"]
[TimeControl "180+1"]
[Date "2023.08.01"]
[WhiteClock "0:00:16"]
[BlackClock "0:00:13"]
[Board "81"]

1. e4 {[%clk 0:03:00]}  e5 {[%clk 0:02:59]} 2. Nf3 {[%clk 0:02:59]}  d6 {[%clk 0:02:59]} 3. d4 {[%clk 0:02:58]}  exd4 {[%clk 0:03:00]} 4. Nxd4 {[%clk 0:02:59]}  Nf6 {[%clk 0:03:01]} 5. Nc3 {[%clk 0:02:59]}  g6 {[%clk 0:03:01]} 6. Bf4 {[%clk 0:02:59]}  Bg7 {[%clk 0:03:00]} 7. Qd2 {[%clk 0:02:59]}  Nc6 {[%clk 0:02:58]} 8. Nxc6 {[%clk 0:02:57]}  bxc6 {[%clk 0:02:59]} 9. f3 {[%clk 0:02:57]}  Nd7 {[%clk 0:02:50]} 10. Bd3 {[%clk 0:02:54]}  Rb8 {[%clk 0:02:43]} 11. Rb1 {[%clk 0:02:50]}  Qe7 {[%clk 0:02:40]} 12. O-O {[%clk 0:02:47]}  O-O {[%clk 0:02:40]} 13. Rfe1 {[%clk 0:02:43]}  Ne5 {[%clk 0:02:41]} 14. Bf1 {[%clk 0:02:42]}  Be6 {[%clk 0:02:40]} 15. b3 {[%clk 0:02:34]}  Qf6 {[%clk 0:02:36]} 16. Ne2 {[%clk 0:02:32]}  Qe7 {[%clk 0:02:04]} 17. Nd4 {[%clk 0:02:31]}  Bd7 {[%clk 0:02:01]} 18. Rbd1 {[%clk 0:02:28]}  c5 {[%clk 0:02:02]} 19. Ne2 {[%clk 0:02:24]}  Be6 {[%clk 0:02:02]} 20. Nc3 {[%clk 0:02:24]}  Nc6 {[%clk 0:02:00]} 21. Nd5 {[%clk 0:02:23]}  Qd7 {[%clk 0:01:50]} 22. Bh6 {[%clk 0:02:21]}  Bxd5 {[%clk 0:01:44]} 23. exd5 {[%clk 0:02:13]}  Nd4 {[%clk 0:01:43]} 24. Bxg7 {[%clk 0:02:10]}  Kxg7 {[%clk 0:01:44]} 25. c3 {[%clk 0:01:57]}  Nf5 {[%clk 0:01:38]} 26. g4 {[%clk 0:01:52]}  Nh4 {[%clk 0:01:34]} 27. Qf2 {[%clk 0:01:50]}  Qd8 {[%clk 0:01:34]} 28. f4 {[%clk 0:01:43]}  h6 {[%clk 0:01:09]} 29. Re3 {[%clk 0:01:32]}  Qf6 {[%clk 0:01:04]} 30. Rde1 {[%clk 0:01:16]}  a5 {[%clk 0:00:46]} 31. Bc4 {[%clk 0:01:03]}  a4 {[%clk 0:00:42]} 32. Rh3 {[%clk 0:01:01]}  g5 {[%clk 0:00:41]} 33. f5 {[%clk 0:01:00]}  axb3 {[%clk 0:00:37]} 34. axb3 {[%clk 0:00:59]}  Rfe8 {[%clk 0:00:34]} 35. Rhe3 {[%clk 0:00:57]}  Rxe3 {[%clk 0:00:34]} 36. Qxe3 {[%clk 0:00:48]}  Ra8 {[%clk 0:00:34]} 37. Kf2 {[%clk 0:00:44]}  h5 {[%clk 0:00:27]} 38. h3 {[%clk 0:00:42]}  Ra2+ {[%clk 0:00:23]} 39. Re2 {[%clk 0:00:41]}  Ra1 {[%clk 0:00:21]} 40. Qe7 {[%clk 0:00:30]}  hxg4 {[%clk 0:00:10]} 41. hxg4 {[%clk 0:00:28]}  Rc1 {[%clk 0:00:03]} 42. Qxf6+ {[%clk 0:00:25]}  Kxf6 {[%clk 0:00:04]} 43. Re3 {[%clk 0:00:25]}  Rc2+ {[%clk 0:00:03]} 44. Be2 {[%clk 0:00:24]}  Rb2 {[%clk 0:00:03]} 45. c4 {[%clk 0:00:23]}  Rb1 {[%clk 0:00:02]} 46. Re8 {[%clk 0:00:23]}  Rb2 {[%clk 0:00:02]} 47. Rc8 {[%clk 0:00:23]}  Ng2 {[%clk 0:00:03]} 48. Kxg2 {[%clk 0:00:20]}  Rxe2+ {[%clk 0:00:04]} 49. Kf3 {[%clk 0:00:21]}  Rb2 {[%clk 0:00:04]} 50. Rxc7 {[%clk 0:00:21]}  Rxb3+ {[%clk 0:00:04]} 51. Ke2 {[%clk 0:00:21]}  Rc3 {[%clk 0:00:05]} 52. Rd7 {[%clk 0:00:21]}  Ke5 {[%clk 0:00:04]} 53. Rxf7 {[%clk 0:00:19]}  Rxc4 {[%clk 0:00:04]} 54. Rg7 {[%clk 0:00:19]}  Rxg4 {[%clk 0:00:04]} 55. Kf3 {[%clk 0:00:16]}  Rf4+ {[%clk 0:00:04]} 56. Ke3 {[%clk 0:00:16]}  Rxf5 {[%clk 0:00:05]} 57. Rg6 {[%clk 0:00:16]}  Kxd5 {[%clk 0:00:06]} 58. Rg8 {[%clk 0:00:16]}  Re5+ {[%clk 0:00:06]} 59. Kd3 {[%clk 0:00:16]}  c4+ {[%clk 0:00:07]} 60. Kc3 {[%clk 0:00:16]}  Re3+ {[%clk 0:00:07]} 61. Kd2 {[%clk 0:00:17]}  Rg3 {[%clk 0:00:08]} 62. Ra8 {[%clk 0:00:17]}  Kd4 {[%clk 0:00:08]} 63. Rd8 {[%clk 0:00:17]}  d5 {[%clk 0:00:09]} 64. Rd7 {[%clk 0:00:17]}  c3+ {[%clk 0:00:10]} 65. Kc1 {[%clk 0:00:17]}  Kc4 {[%clk 0:00:11]} 66. Rd8 {[%clk 0:00:17]}  d4 {[%clk 0:00:11]} 67. Rd7 {[%clk 0:00:17]}  Kd3 {[%clk 0:00:12]} 68. Kb1 {[%clk 0:00:17]}  Rg1+ {[%clk 0:00:12]} 69. Ka2 {[%clk 0:00:18]}  c2 {[%clk 0:00:13]} 70. Rb7 {[%clk 0:00:17]}  c1=Q {[%clk 0:00:11]} 71. Rb3+ {[%clk 0:00:17]}  Qc3 {[%clk 0:00:11]} 72. Rxc3+ {[%clk 0:00:17]}  Kxc3 {[%clk 0:00:12]} 73. Ka3 {[%clk 0:00:16]}  Ra1# {[%clk 0:00:13]} 0-1


[Site "https://www.chess.com"]

[Event "Titled Tuesday Blitz August 1 Early 2023"]
[White "Papp, Petra"]
[Black "Lana Rodriguez, David"]
[WhiteFideId "739049"]
[BlackFideId "2270803"]
[WhiteElo "2450"]
[BlackElo "2590"]
[Result "0-1"]
[Round "7"]
[TimeControl "180+1"]
[Date "2023.08.01"]
[WhiteClock "0:00:00"]
[BlackClock "0:01:43"]
[Board "82"]

1. e4 {[%clk 0:01:30]}  c5 {[%clk 0:02:57]} 2. Nf3 {[%clk 0:01:22]}  Nc6 {[%clk 0:02:58]} 3. d4 {[%clk 0:01:21]}  cxd4 {[%clk 0:02:59]} 4. Nxd4 {[%clk 0:01:21]}  e5 {[%clk 0:03:00]} 5. Nb5 {[%clk 0:01:18]}  a6 {[%clk 0:03:00]} 6. Nd6+ {[%clk 0:01:13]}  Bxd6 {[%clk 0:03:01]} 7. Qxd6 {[%clk 0:01:13]}  Qf6 {[%clk 0:03:01]} 8. Qxf6 {[%clk 0:01:13]}  Nxf6 {[%clk 0:03:02]} 9. Bd3 {[%clk 0:01:06]}  Nb4 {[%clk 0:03:02]} 10. Nc3 {[%clk 0:01:05]}  Nxd3+ {[%clk 0:03:02]} 11. cxd3 {[%clk 0:01:04]}  h6 {[%clk 0:03:02]} 12. f3 {[%clk 0:01:00]}  d6 {[%clk 0:03:02]} 13. Be3 {[%clk 0:00:51]}  Be6 {[%clk 0:03:02]} 14. Rc1 {[%clk 0:00:51]}  O-O {[%clk 0:02:59]} 15. Kd2 {[%clk 0:00:51]}  b5 {[%clk 0:02:56]} 16. Rc2 {[%clk 0:00:46]}  b4 {[%clk 0:02:51]} 17. Na4 {[%clk 0:00:42]}  Bxa2 {[%clk 0:02:50]} 18. Nb6 {[%clk 0:00:41]}  Rab8 {[%clk 0:02:47]} 19. Rhc1 {[%clk 0:00:36]}  d5 {[%clk 0:02:33]} 20. exd5 {[%clk 0:00:35]}  Bxd5 {[%clk 0:02:30]} 21. Bc5 {[%clk 0:00:35]}  Rfd8 {[%clk 0:02:27]} 22. Nxd5 {[%clk 0:00:33]}  Nxd5 {[%clk 0:02:26]} 23. g3 {[%clk 0:00:33]}  a5 {[%clk 0:02:23]} 24. Be3 {[%clk 0:00:31]}  b3 {[%clk 0:02:16]} 25. Rc5 {[%clk 0:00:31]}  a4 {[%clk 0:02:11]} 26. Ra5 {[%clk 0:00:27]}  Ra8 {[%clk 0:01:59]} 27. Rcc5 {[%clk 0:00:27]}  Nb4 {[%clk 0:01:56]} 28. Rxa8 {[%clk 0:00:23]}  Rxa8 {[%clk 0:01:57]} 29. Rb5 {[%clk 0:00:23]}  Nc6 {[%clk 0:01:51]} 30. Bc5 {[%clk 0:00:22]}  Ra6 {[%clk 0:01:47]} 31. Ba3 {[%clk 0:00:21]}  f6 {[%clk 0:01:47]} 32. Kc3 {[%clk 0:00:19]}  Kf7 {[%clk 0:01:47]} 33. Kc4 {[%clk 0:00:18]}  Ke6 {[%clk 0:01:47]} 34. Kc5 {[%clk 0:00:17]}  Nd4 {[%clk 0:01:45]} 35. Rb6+ {[%clk 0:00:10]}  Rxb6 {[%clk 0:01:44]} 36. Kxb6 {[%clk 0:00:07]}  Nc2 {[%clk 0:01:43]} 37. Bf8 {[%clk 0:00:00]}  a3 {[%clk 0:01:43]} 0-1


[Site "https://www.chess.com"]

[Event "Titled Tuesday Blitz August 1 Early 2023"]
[White "Karamsetty, Jeevan"]
[Black "FREDERICKtheMATE"]
[WhiteFideId "2025337"]
[WhiteElo "2587"]
[BlackElo "2430"]
[Result "1/2-1/2"]
[Round "7"]
[TimeControl "180+1"]
[Date "2023.08.01"]
[WhiteClock "0:00:08"]
[BlackClock "0:01:25"]
[Board "84"]

1. e4 {[%clk 0:03:00]}  c5 {[%clk 0:03:00]} 2. Nf3 {[%clk 0:03:00]}  Nc6 {[%clk 0:03:00]} 3. d4 {[%clk 0:03:00]}  cxd4 {[%clk 0:03:01]} 4. Nxd4 {[%clk 0:03:00]}  Nf6 {[%clk 0:03:00]} 5. Nc3 {[%clk 0:03:00]}  e5 {[%clk 0:03:01]} 6. Ndb5 {[%clk 0:03:01]}  d6 {[%clk 0:03:01]} 7. Bg5 {[%clk 0:03:01]}  a6 {[%clk 0:03:01]} 8. Na3 {[%clk 0:03:02]}  b5 {[%clk 0:03:01]} 9. Nd5 {[%clk 0:03:02]}  Be7 {[%clk 0:03:01]} 10. Bxf6 {[%clk 0:03:03]}  Bxf6 {[%clk 0:03:01]} 11. c4 {[%clk 0:03:04]}  b4 {[%clk 0:03:01]} 12. Nc2 {[%clk 0:03:04]}  O-O {[%clk 0:03:01]} 13. b3 {[%clk 0:03:04]}  a5 {[%clk 0:03:01]} 14. g3 {[%clk 0:03:00]}  Bg5 {[%clk 0:02:58]} 15. Bg2 {[%clk 0:02:59]}  Be6 {[%clk 0:02:58]} 16. O-O {[%clk 0:02:59]}  Qb8 {[%clk 0:02:58]} 17. f4 {[%clk 0:02:58]}  exf4 {[%clk 0:02:53]} 18. gxf4 {[%clk 0:02:58]}  Bd8 {[%clk 0:02:52]} 19. Nce3 {[%clk 0:02:52]}  Bb6 {[%clk 0:02:51]} 20. Kh1 {[%clk 0:02:50]}  Re8 {[%clk 0:02:40]} 21. f5 {[%clk 0:02:43]}  Bxd5 {[%clk 0:02:35]} 22. Nxd5 {[%clk 0:02:33]}  Bd4 {[%clk 0:02:35]} 23. Rc1 {[%clk 0:02:21]}  Be5 {[%clk 0:02:34]} 24. f6 {[%clk 0:02:14]}  g6 {[%clk 0:02:32]} 25. Qd2 {[%clk 0:02:09]}  Kh8 {[%clk 0:02:25]} 26. Rf3 {[%clk 0:01:51]}  Rg8 {[%clk 0:02:23]} 27. Rh3 {[%clk 0:01:19]}  g5 {[%clk 0:02:20]} 28. Qe2 {[%clk 0:00:57]}  Rg6 {[%clk 0:02:12]} 29. Rf1 {[%clk 0:00:50]}  Qg8 {[%clk 0:02:04]} 30. Qh5 {[%clk 0:00:44]}  a4 {[%clk 0:01:49]} 31. Qg4 {[%clk 0:00:36]}  axb3 {[%clk 0:01:39]} 32. axb3 {[%clk 0:00:37]}  Qc8 {[%clk 0:01:38]} 33. Qh5 {[%clk 0:00:29]}  Qg8 {[%clk 0:01:28]} 34. Qg4 {[%clk 0:00:18]}  Qc8 {[%clk 0:01:26]} 35. Qh5 {[%clk 0:00:14]}  Qg8 {[%clk 0:01:25]} 36. Qg4 {[%clk 0:00:08]} 1/2-1/2


[Site "https://www.chess.com"]

[Event "Titled Tuesday Blitz August 1 Early 2023"]
[White "Cnejev, Vladimir-Alexandru"]
[Black "Fisabilillah, Ummi"]
[WhiteFideId "1260898"]
[BlackFideId "7104804"]
[WhiteElo "2581"]
[BlackElo "2424"]
[Result "1/2-1/2"]
[Round "7"]
[TimeControl "180+1"]
[Date "2023.08.01"]
[WhiteClock "0:00:11"]
[BlackClock "0:00:18"]
[Board "85"]

1. Nf3 {[%clk 0:03:00]}  Nf6 {[%clk 0:02:57]} 2. b3 {[%clk 0:03:01]}  d5 {[%clk 0:02:57]} 3. Bb2 {[%clk 0:03:01]}  c6 {[%clk 0:02:58]} 4. e3 {[%clk 0:03:02]}  Bf5 {[%clk 0:02:58]} 5. h3 {[%clk 0:02:58]}  Nbd7 {[%clk 0:02:57]} 6. g4 {[%clk 0:02:56]}  Bg6 {[%clk 0:02:57]} 7. Rg1 {[%clk 0:02:53]}  Qc7 {[%clk 0:02:55]} 8. h4 {[%clk 0:02:50]}  h5 {[%clk 0:02:49]} 9. g5 {[%clk 0:02:49]}  Ng4 {[%clk 0:02:48]} 10. d4 {[%clk 0:02:45]}  e5 {[%clk 0:02:47]} 11. dxe5 {[%clk 0:02:45]}  Ngxe5 {[%clk 0:02:45]} 12. Nbd2 {[%clk 0:02:45]}  Bb4 {[%clk 0:02:39]} 13. c3 {[%clk 0:02:42]}  Bd6 {[%clk 0:02:36]} 14. Nxe5 {[%clk 0:02:41]}  Nxe5 {[%clk 0:02:34]} 15. Be2 {[%clk 0:02:26]}  O-O-O {[%clk 0:02:24]} 16. Nf3 {[%clk 0:02:25]}  Ng4 {[%clk 0:02:21]} 17. Qd2 {[%clk 0:02:21]}  Rhe8 {[%clk 0:02:16]} 18. O-O-O {[%clk 0:02:19]}  Nxf2 {[%clk 0:02:15]} 19. Rde1 {[%clk 0:02:11]}  Ng4 {[%clk 0:01:58]} 20. Bd3 {[%clk 0:02:09]}  Bxd3 {[%clk 0:01:45]} 21. Qxd3 {[%clk 0:02:09]}  Nxe3 {[%clk 0:01:45]} 22. Kb1 {[%clk 0:02:09]}  Ng4 {[%clk 0:01:42]} 23. c4 {[%clk 0:02:06]}  Bc5 {[%clk 0:01:20]} 24. Rxe8 {[%clk 0:01:27]}  Rxe8 {[%clk 0:01:19]} 25. Rc1 {[%clk 0:01:27]}  dxc4 {[%clk 0:01:07]} 26. Qxc4 {[%clk 0:01:26]}  Bf8 {[%clk 0:01:05]} 27. Bd4 {[%clk 0:01:15]}  Qf4 {[%clk 0:00:56]} 28. Rc3 {[%clk 0:00:59]}  Ba3 {[%clk 0:00:49]} 29. Bxg7 {[%clk 0:00:33]}  Qf5+ {[%clk 0:00:37]} 30. Qd3 {[%clk 0:00:27]}  Qxd3+ {[%clk 0:00:29]} 31. Rxd3 {[%clk 0:00:28]}  Re3 {[%clk 0:00:28]} 32. Kc2 {[%clk 0:00:20]}  Re2+ {[%clk 0:00:26]} 33. Rd2 {[%clk 0:00:20]}  Re3 {[%clk 0:00:24]} 34. Rd3 {[%clk 0:00:20]}  Re2+ {[%clk 0:00:22]} 35. Rd2 {[%clk 0:00:21]}  Re4 {[%clk 0:00:22]} 36. Rd4 {[%clk 0:00:18]}  Ne3+ {[%clk 0:00:19]} 37. Kd3 {[%clk 0:00:16]}  Rxd4+ {[%clk 0:00:19]} 38. Bxd4 {[%clk 0:00:17]}  Nf5 {[%clk 0:00:20]} 39. Bxa7 {[%clk 0:00:08]}  Kd7 {[%clk 0:00:18]} 40. Ke4 {[%clk 0:00:08]}  Ke6 {[%clk 0:00:18]} 41. Nd4+ {[%clk 0:00:06]}  Nxd4 {[%clk 0:00:18]} 42. Bxd4 {[%clk 0:00:07]}  Bd6 {[%clk 0:00:18]} 43. Bf2 {[%clk 0:00:07]}  Bc7 {[%clk 0:00:17]} 44. Be1 {[%clk 0:00:08]}  Bd6 {[%clk 0:00:18]} 45. Bf2 {[%clk 0:00:08]}  Be7 {[%clk 0:00:18]} 46. Be1 {[%clk 0:00:09]}  f6 {[%clk 0:00:17]} 47. gxf6 {[%clk 0:00:08]}  Bxf6 {[%clk 0:00:18]} 48. Bg3 {[%clk 0:00:09]}  b5 {[%clk 0:00:18]} 49. Be1 {[%clk 0:00:08]}  c5 {[%clk 0:00:13]} 50. Bf2 {[%clk 0:00:08]}  c4 {[%clk 0:00:13]} 51. bxc4 {[%clk 0:00:08]}  bxc4 {[%clk 0:00:14]} 52. Be1 {[%clk 0:00:08]}  c3 {[%clk 0:00:14]} 53. Bxc3 {[%clk 0:00:07]}  Bxc3 {[%clk 0:00:14]} 54. Kf3 {[%clk 0:00:07]}  Kf6 {[%clk 0:00:15]} 55. Kg2 {[%clk 0:00:08]}  Kf5 {[%clk 0:00:15]} 56. Kh1 {[%clk 0:00:09]}  Kg4 {[%clk 0:00:15]} 57. a4 {[%clk 0:00:10]}  Kxh4 {[%clk 0:00:16]} 58. a5 {[%clk 0:00:11]}  Bxa5 {[%clk 0:00:16]} 59. Kg2 {[%clk 0:00:10]}  Bb6 {[%clk 0:00:17]} 60. Kh1 {[%clk 0:00:11]}  Kg3 {[%clk 0:00:18]} 1/2-1/2


[Site "https://www.chess.com"]

[Event "Titled Tuesday Blitz August 1 Early 2023"]
[White "Kashlinskaya, Alina"]
[Black "Gardezi, Arsal"]
[WhiteFideId "4198026"]
[BlackFideId "30949521"]
[WhiteElo "2575"]
[BlackElo "2293"]
[Result "0-1"]
[Round "7"]
[TimeControl "180+1"]
[Date "2023.08.01"]
[WhiteClock "0:00:06"]
[BlackClock "0:00:18"]
[Board "88"]

1. e4 {[%clk 0:02:57]}  e5 {[%clk 0:02:56]} 2. Nc3 {[%clk 0:02:57]}  Nc6 {[%clk 0:02:56]} 3. Bc4 {[%clk 0:02:55]}  Nf6 {[%clk 0:02:55]} 4. d3 {[%clk 0:02:55]}  Na5 {[%clk 0:02:53]} 5. Nge2 {[%clk 0:02:47]}  Nxc4 {[%clk 0:02:50]} 6. dxc4 {[%clk 0:02:48]}  Bc5 {[%clk 0:02:43]} 7. O-O {[%clk 0:02:46]}  a6 {[%clk 0:02:43]} 8. b3 {[%clk 0:02:46]}  d6 {[%clk 0:02:43]} 9. Qd3 {[%clk 0:02:47]}  O-O {[%clk 0:02:42]} 10. Be3 {[%clk 0:02:47]}  Bxe3 {[%clk 0:02:37]} 11. Qxe3 {[%clk 0:02:47]}  Re8 {[%clk 0:02:29]} 12. Rad1 {[%clk 0:02:47]}  Qe7 {[%clk 0:02:27]} 13. Ng3 {[%clk 0:02:41]}  b5 {[%clk 0:02:25]} 14. cxb5 {[%clk 0:02:22]}  axb5 {[%clk 0:02:25]} 15. Nxb5 {[%clk 0:02:23]}  Rxa2 {[%clk 0:02:22]} 16. Qc3 {[%clk 0:02:23]}  Ba6 {[%clk 0:02:06]} 17. Nf5 {[%clk 0:02:07]}  Qd7 {[%clk 0:01:53]} 18. Qg3 {[%clk 0:00:48]}  g6 {[%clk 0:01:52]} 19. Nc3 {[%clk 0:00:43]}  Rxc2 {[%clk 0:01:48]} 20. Rfe1 {[%clk 0:00:37]}  Nh5 {[%clk 0:01:40]} 21. Qg4 {[%clk 0:00:36]}  Nf6 {[%clk 0:01:31]} 22. Qg3 {[%clk 0:00:29]}  Rxc3 {[%clk 0:01:23]} 23. Qxc3 {[%clk 0:00:29]}  gxf5 {[%clk 0:01:22]} 24. exf5 {[%clk 0:00:29]}  Kh8 {[%clk 0:01:05]} 25. Qf3 {[%clk 0:00:20]}  Rg8 {[%clk 0:00:58]} 26. Rxe5 {[%clk 0:00:19]}  Qc8 {[%clk 0:00:50]} 27. Ree1 {[%clk 0:00:19]}  Bb7 {[%clk 0:00:50]} 28. Qc3 {[%clk 0:00:19]}  Rxg2+ {[%clk 0:00:44]} 29. Kf1 {[%clk 0:00:20]}  Qxf5 {[%clk 0:00:42]} 30. Rd2 {[%clk 0:00:11]}  Rxh2 {[%clk 0:00:24]} 31. Re8+ {[%clk 0:00:10]}  Kg7 {[%clk 0:00:23]} 32. Qg3+ {[%clk 0:00:10]}  Ng4 {[%clk 0:00:21]} 33. Qc3+ {[%clk 0:00:06]}  Qf6 {[%clk 0:00:21]} 34. Qg3 {[%clk 0:00:04]}  Rh1+ {[%clk 0:00:20]} 35. Ke2 {[%clk 0:00:05]}  Qxf2+ {[%clk 0:00:16]} 36. Qxf2 {[%clk 0:00:05]}  Ba6+ {[%clk 0:00:15]} 37. Kf3 {[%clk 0:00:04]}  Nxf2 {[%clk 0:00:15]} 38. Rxf2 {[%clk 0:00:04]}  Rh3+ {[%clk 0:00:15]} 39. Kg2 {[%clk 0:00:04]}  Rxb3 {[%clk 0:00:16]} 40. Rf3 {[%clk 0:00:05]}  Bb7 {[%clk 0:00:15]} 41. Re7 {[%clk 0:00:05]}  Bxf3+ {[%clk 0:00:15]} 42. Kf2 {[%clk 0:00:05]}  Bd5 {[%clk 0:00:16]} 43. Rd7 {[%clk 0:00:05]}  Be6 {[%clk 0:00:16]} 44. Rxc7 {[%clk 0:00:06]}  Rb2+ {[%clk 0:00:16]} 45. Kg1 {[%clk 0:00:05]}  Rb3 {[%clk 0:00:17]} 46. Rc6 {[%clk 0:00:05]}  d5 {[%clk 0:00:18]} 47. Rd6 {[%clk 0:00:06]}  Rb2 {[%clk 0:00:17]} 48. Kh1 {[%clk 0:00:06]}  Rd2 {[%clk 0:00:18]} 49. Kg1 {[%clk 0:00:06]}  d4 {[%clk 0:00:18]} 50. Kh1 {[%clk 0:00:07]}  d3 {[%clk 0:00:18]} 51. Kg1 {[%clk 0:00:08]}  Rd1+ {[%clk 0:00:18]} 52. Kh2 {[%clk 0:00:08]}  d2 {[%clk 0:00:19]} 53. Rd3 {[%clk 0:00:08]}  Bf5 {[%clk 0:00:19]} 54. Rg3+ {[%clk 0:00:08]}  Kf6 {[%clk 0:00:18]} 55. Rf3 {[%clk 0:00:06]}  Rh1+ {[%clk 0:00:18]} 0-1


[Site "https://www.chess.com"]

[Event "Titled Tuesday Blitz August 1 Early 2023"]
[White "Mendez Fortes, Eduardo Jesus"]
[Black "Nosacheva, Mariya"]
[WhiteFideId "3502376"]
[BlackFideId "34111422"]
[WhiteElo "2565"]
[BlackElo "2393"]
[Result "1-0"]
[Round "7"]
[TimeControl "180+1"]
[Date "2023.08.01"]
[WhiteClock "0:00:58"]
[BlackClock "0:00:00"]
[Board "89"]

1. e4 {[%clk 0:02:57]}  c5 {[%clk 0:02:57]} 2. Nf3 {[%clk 0:02:57]}  d6 {[%clk 0:02:57]} 3. d4 {[%clk 0:02:58]}  cxd4 {[%clk 0:02:56]} 4. Nxd4 {[%clk 0:02:59]}  Nf6 {[%clk 0:02:57]} 5. Nc3 {[%clk 0:02:59]}  a6 {[%clk 0:02:56]} 6. Bg5 {[%clk 0:02:59]}  Nbd7 {[%clk 0:02:55]} 7. Bc4 {[%clk 0:02:58]}  Qb6 {[%clk 0:02:47]} 8. Bb3 {[%clk 0:02:58]}  e6 {[%clk 0:02:45]} 9. Qd2 {[%clk 0:02:57]}  Qc7 {[%clk 0:02:32]} 10. O-O-O {[%clk 0:02:56]}  Nc5 {[%clk 0:02:30]} 11. f3 {[%clk 0:02:55]}  b5 {[%clk 0:02:28]} 12. a3 {[%clk 0:02:55]}  Be7 {[%clk 0:02:18]} 13. g4 {[%clk 0:02:50]}  Bd7 {[%clk 0:01:56]} 14. Ba2 {[%clk 0:02:34]}  Rb8 {[%clk 0:01:47]} 15. b4 {[%clk 0:02:34]}  Na4 {[%clk 0:01:43]} 16. Nxa4 {[%clk 0:02:34]}  bxa4 {[%clk 0:01:44]} 17. c3 {[%clk 0:02:34]}  a5 {[%clk 0:01:43]} 18. Kb1 {[%clk 0:02:32]}  O-O {[%clk 0:01:05]} 19. h4 {[%clk 0:02:31]}  Rfc8 {[%clk 0:01:04]} 20. Rc1 {[%clk 0:02:30]}  d5 {[%clk 0:00:58]} 21. e5 {[%clk 0:02:26]}  Nxg4 {[%clk 0:00:15]} 22. fxg4 {[%clk 0:02:21]}  Bxg5 {[%clk 0:00:16]} 23. hxg5 {[%clk 0:02:17]}  axb4 {[%clk 0:00:15]} 24. axb4 {[%clk 0:02:15]}  Qa7 {[%clk 0:00:16]} 25. Qh2 {[%clk 0:02:05]}  Rxc3 {[%clk 0:00:15]} 26. Rxc3 {[%clk 0:01:31]}  Rxb4+ {[%clk 0:00:14]} 27. Nb3 {[%clk 0:01:30]}  axb3 {[%clk 0:00:14]} 28. Rxb3 {[%clk 0:01:31]}  Rxb3+ {[%clk 0:00:12]} 29. Bxb3 {[%clk 0:01:32]}  Qe3 {[%clk 0:00:12]} 30. Qxh7+ {[%clk 0:01:24]}  Kf8 {[%clk 0:00:13]} 31. Qc2 {[%clk 0:01:24]}  Ke7 {[%clk 0:00:09]} 32. g6 {[%clk 0:01:20]}  Qxe5 {[%clk 0:00:09]} 33. Qc5+ {[%clk 0:01:16]}  Kf6 {[%clk 0:00:08]} 34. gxf7 {[%clk 0:01:15]}  Qe4+ {[%clk 0:00:09]} 35. Kb2 {[%clk 0:01:14]}  Qe2+ {[%clk 0:00:08]} 36. Bc2 {[%clk 0:01:13]}  Kxf7 {[%clk 0:00:06]} 37. g5 {[%clk 0:01:12]}  Qe5+ {[%clk 0:00:05]} 38. Qc3 {[%clk 0:01:12]}  Qxg5 {[%clk 0:00:05]} 39. Rf1+ {[%clk 0:01:10]}  Ke8 {[%clk 0:00:05]} 40. Qd3 {[%clk 0:01:05]}  Qe5+ {[%clk 0:00:05]} 41. Kb1 {[%clk 0:01:04]}  Qb8+ {[%clk 0:00:04]} 42. Kc1 {[%clk 0:01:04]}  Qb4 {[%clk 0:00:04]} 43. Qg6+ {[%clk 0:01:00]}  Kd8 {[%clk 0:00:00]} 44. Qxg7 {[%clk 0:00:58]} 1-0


[Site "https://www.chess.com"]

[Event "Titled Tuesday Blitz August 1 Early 2023"]
[White "Papayan, Oleg"]
[Black "Csonka, Balazs"]
[WhiteFideId "4193911"]
[BlackFideId "742910"]
[WhiteElo "2495"]
[BlackElo "2709"]
[Result "0-1"]
[Round "7"]
[TimeControl "180+1"]
[Date "2023.08.01"]
[WhiteClock "0:00:00"]
[BlackClock "0:01:12"]
[Board "90"]

1. e4 {[%clk 0:03:00]}  e6 {[%clk 0:02:57]} 2. d4 {[%clk 0:03:00]}  d5 {[%clk 0:02:58]} 3. Nc3 {[%clk 0:03:00]}  Bb4 {[%clk 0:02:55]} 4. Ne2 {[%clk 0:03:00]}  dxe4 {[%clk 0:02:48]} 5. a3 {[%clk 0:03:00]}  Bxc3+ {[%clk 0:02:42]} 6. Nxc3 {[%clk 0:03:01]}  Nc6 {[%clk 0:02:42]} 7. d5 {[%clk 0:03:01]}  exd5 {[%clk 0:02:43]} 8. Qxd5 {[%clk 0:03:01]}  Be6 {[%clk 0:02:37]} 9. Qxe4 {[%clk 0:03:01]}  Nf6 {[%clk 0:02:36]} 10. Qa4 {[%clk 0:03:02]}  Qe7 {[%clk 0:02:19]} 11. Be3 {[%clk 0:02:51]}  Ng4 {[%clk 0:01:50]} 12. Bb5 {[%clk 0:02:43]}  O-O {[%clk 0:01:47]} 13. Bxc6 {[%clk 0:02:24]}  Nxe3 {[%clk 0:01:42]} 14. fxe3 {[%clk 0:02:25]}  bxc6 {[%clk 0:01:42]} 15. Qxc6 {[%clk 0:02:18]}  Qh4+ {[%clk 0:01:25]} 16. g3 {[%clk 0:02:14]}  Qg5 {[%clk 0:01:24]} 17. Qf3 {[%clk 0:01:36]}  Rab8 {[%clk 0:01:18]} 18. O-O-O {[%clk 0:00:36]}  Bg4 {[%clk 0:01:17]} 19. Qd5 {[%clk 0:00:36]}  Qxe3+ {[%clk 0:01:15]} 20. Rd2 {[%clk 0:00:00]}  Bf3 {[%clk 0:01:12]} 0-1


[Site "https://www.chess.com"]